Cogmind - Beta 10.1 @@@ ROGUE MODE // 2020.10.27 @ 19:51:50 Player: Atherys Result: Self-destructed Performance ------------- Evolutions (1) 500 Regions Visited (2) 400 Robots Destroyed (7) 35 Value Destroyed (142) 142 Prototype IDs (0) 0 Alien Tech Used (0) 0 Bonus (0) 0 TOTAL SCORE: 1077 Bonus ------- None Cogmind --------- Core Integrity 400/400 Matter 300/300 Energy 100/100 System Corruption 0% Temperature Cool (0) Movement Walking (120) Location -9/Materials Parts ------- > --- POWER (1) -------- (None) > --- PROPULSION (4) --- Aluminum Leg Aluminum Leg > --- UTILITY (2) ------ Improved Heat Sink Small Storage Unit > --- WEAPON (2) ------- (None) > --- INVENTORY (6) ---- High-capacity Matter Pod (56) Peak State ------------ > --- POWER ------------ Light Ion Engine > --- PROPULSION ------- Aluminum Leg Aluminum Leg > --- UTILITY ---------- Small Storage Unit Improved Terrain Scanner > --- WEAPON ----------- EM Pulse Gun Small Laser > --- INVENTORY -------- High-capacity Matter Pod Mining Laser [Rating: 8] Favorites ----------- Power Light Ion Engine Engine Light Ion Engine Propulsion Aluminum Leg Leg Aluminum Leg Utility Small Storage Unit Device Improved Terrain Scanner Storage Small Storage Unit Weapon EM Pulse Gun Energy Gun EM Pulse Gun Special Weapon Mining Laser Build | -11 -10 -9 ------- Run | Scr Mat Mat Slots Evolved 2 | . . 2 Power . | . . . Propulsion 2 | . . 2 Utility . | . . . Weapon . | . . . Parts Attached 9 | 6 3 . Power 1 | 1 . . Engine 1 | 1 . . Core . | . . . Reactor . | . . . Propulsion 2 | 2 . . Treads . | . . . Leg 2 | 2 . . Wheel . | . . . Hover . | . . . Flight . | . . . Utility 3 | 2 1 . Device 2 | 1 1 . Storage 1 | 1 . . Processor . | . . . Hackware . | . . . Protection . | . . . Artifact . | . . . Weapon 3 | 1 2 . Energy Gun 2 | 1 1 . Energy Cannon . | . . . Ballistic Gun . | . . . Ballistic Cannon . | . . . Launcher . | . . . Special Weapon 1 | . 1 . Impact Weapon . | . . . Slashing Weapon . | . . . Piercing Weapon . | . . . Special Melee Weapon . | . . . Unidentified Prototypes . | . . . Parts Lost 4 | . 4 . Power 1 | . 1 . Propulsion . | . . . Utility . | . . . Weapon 3 | . 3 . Highest Loss Streak 4 | . 4 . Average Slot Usage (%) 84 | . 84 . Engine 12 | . 12 . Leg 28 | . 28 . Device 14 | . 14 . Storage 14 | . 14 . Energy Gun 14 | . 14 . Naked Turns . | . . . Heaviest Build 11 | 10 11 . Greatest Support 20 | 20 20 . Greatest Overweight (x) 2 | 2 . . Average Overweight (x) . | . . . Largest Inventory Capacity 6 | 6 6 . Average Capacity 5 | 5 6 . Most Carried 2 | 1 2 . Average Carried 1 | . 1 . Final Capacity 6 | 6 6 6 Final Carried 1 | 1 1 1 Class Distribution -------------------- 100% | Mutant Dominant Class ---------------- Mutant | -10/Materials Mutant | -9/Materials Resources | -11 -10 -9 ----------- Run | Scr Mat Mat Matter Collected 326 | 258 68 . Remotely . | . . . Salvage Created 250 | 122 128 . Parts 17 | 12 5 . Haulers Intercepted . | . . . Recyclers Shooed 1 | 1 . . Parts Field Recycled . | . . . Retrieved Matter . | . . . Parts Self-Destructed . | . . . Prevented . | . . . Kills | -11 -10 -9 ------- Run | Scr Mat Mat Combat Hostiles Destroyed 3 | . 3 . Guns 3 | . 3 . Classes Destroyed 3 | 2 1 . Tunneler 3 | 3 . . Recycler 1 | 1 . . Grunt 3 | . 3 . Best Kill Streak 4 | 4 3 . Combat Bots Only 3 | . 3 . Max Kills in Single Turn 1 | 1 1 . Gunslinging . | . . . Exploded . | . . . Melee . | . . . Uniques/NPCs Destroyed . | . . . Combat | -11 -10 -9 -------- Run | Scr Mat Mat Damage Taken 471 | . 471 . Core 112 | . 112 . Absorbed by Shields . | . . . Core Remaining (%) 77 | 100 55 . Volleys Fired 33 | 10 23 . Largest 2 | 1 2 . Hottest 80 | 40 80 . Shots Fired 41 | 10 31 . Gun 41 | 10 31 . Cannon . | . . . Launcher . | . . . Special . | . . . Kinetic . | . . . Thermal 20 | . 20 . Explosive . | . . . Electromagnetic 21 | 10 11 . Robot Hit Streak 5 | 4 5 . Robot Miss Streak 3 | 3 3 . Penetration Max . | . . . Secondary Targets . | . . . Shots Hit Robots 26 | 6 20 . Core Hits 11 | 4 7 . Critical Hits . | . . . Critical Kills . | . . . Critical Parts Destroyed . | . . . Melee Attacks . | . . . Impact . | . . . Slashing . | . . . Piercing . | . . . Sneak Attacks . | . . . Combat Hostiles . | . . . Follow-up Attacks . | . . . Damage Inflicted 358 | 127 231 . Guns 314 | 83 231 . Cannons . | . . . Explosions 44 | 44 . . Melee . | . . . Ramming . | . . . Kinetic . | . . . Thermal 201 | 44 157 . Explosive . | . . . Electromagnetic 157 | 83 74 . Impact . | . . . Slashing . | . . . Piercing . | . . . Highest Corruption . | . . . Average Corruption . | . . . Corruption Purged . | . . . Overload Shots . | . . . Overflow Damage . | . . . Projectiles . | . . . Explosions . | . . . Melee . | . . . Knockbacks . | . . . Impact . | . . . Kinetic . | . . . Secondary . | . . . Self-Inflicted Damage . | . . . Shots . | . . . Rammed . | . . . Targets Rammed . | . . . Kicked . | . . . Crushed . | . . . Highest Temperature 283 | . 283 . Average Temperature 162 | . 162 . Received Heat Transfer 273 | . 273 . Effects 1 | . 1 . Interference 1 | . 1 . Siege Activations . | . . . Robots Corrupted . | . . . Combat Hostiles . | . . . Parts Fried . | . . . Impact Corruptions . | . . . Robots Melted . | . . . Combat Hostiles . | . . . Parts Melted 1 | . 1 . Heat Transferred 400 | 50 350 . Parts Sabotaged . | . . . Parts Stolen . | . . . Parts Stripped . | . . . Power Chain Reactions 1 | 1 . . Missiles Intercepted . | . . . Alert | -11 -10 -9 ------- Run | Scr Mat Mat Peak Influence 105 | 20 105 . Initial 42 | . 13 42 Average 35 | 7 44 . Maximum Alert Level . | . . . Low Security (%) 100 | 100 100 . Level 1 . | . . . Level 2 . | . . . Level 3 . | . . . Level 4 . | . . . Level 5 . | . . . High Security . | . . . Max Security . | . . . Squads Dispatched 1 | . 1 . Investigation . | . . . Extermination . | . . . Reinforcement 1 | . 1 . Assault . | . . . Garrison . | . . . Intercept . | . . . Construction Impeded . | . . . Haulers Reinforced . | . . . Stealth | -11 -10 -9 --------- Run | Scr Mat Mat Distress Signals 1 | . 1 . Communications Jammed . | . . . Distress Signals . | . . . Times Spotted 7 | . 7 . Peak Tracking Total 3 | . 3 . Tactical Retreats . | . . . Traps | -11 -10 -9 ------- Run | Scr Mat Mat Traps Triggered . | . . . Indirectly . | . . . Trap Hack Attempts . | . . . Triggered . | . . . Disarmed . | . . . Reprogrammed . | . . . Reused . | . . . Traps Extracted . | . . . Installed . | . . . Triggered . | . . . Machines | -11 -10 -9 ---------- Run | Scr Mat Mat Machines Disabled . | . . . Max in Single Turn . | . . . Machines Sabotaged . | . . . Garrisons Compromised . | . . . Overloaded Fab Kills . | . . . Fab Network Shutdowns . | . . . Hacking | -11 -10 -9 --------- Run | Scr Mat Mat Machines Accessed 2 | . 2 . Terminals 2 | . 2 . Fabricators . | . . . Repair Stations . | . . . Recycling Units . | . . . Scanalyzers . | . . . Garrison Access . | . . . Total Hacks 8 | . 8 . Successful 3 | . 3 . Failed 5 | . 5 . Catastrophic . | . . . Database Lockouts . | . . . Manual 8 | . 8 . Terminals 8 | . 8 . Fabricators . | . . . Repair Stations . | . . . Recycling Units . | . . . Scanalyzers . | . . . Garrison Access . | . . . Terminal Hacks . | . . . Fabricator Hacks . | . . . Repair Station Hacks . | . . . Recycling Unit Hacks . | . . . Scanalyzer . | . . . Garrison Access Hacks . | . . . Unauthorized Hacks 3 | . 3 . Terminals 3 | . 3 . Track 1 | . 1 . Assimilate 1 | . 1 . Operators 1 | . 1 . Fabricators . | . . . Repair Stations . | . . . Recycling Units . | . . . Scanalyzers . | . . . Garrison Access . | . . . Data Cores Recovered . | . . . Used . | . . . Hacking Detections 2 | . 2 . Full Trace Events 1 | . 1 . Feedback Events . | . . . Feedback Blocked . | . . . Robot Schematics Acquired . | . . . Robots Built . | . . . Matter . | . . . Time . | . . . Total Robot Build Rating . | . . . Part Schematics Acquired . | . . . Parts Built . | . . . Matter . | . . . Time . | . . . Total Part Build Rating . | . . . Parts Repaired . | . . . Time . | . . . Parts Recycled . | . . . Recycled Matter . | . . . Retrieved Matter . | . . . Retrieved Components . | . . . Parts Scanalyzed . | . . . Part Schematics Acquired . | . . . Parts Damaged . | . . . Bothacking | -11 -10 -9 ------------ Run | Scr Mat Mat Used RIF Installer . | . . . Robots Hacked . | . . . Non-combat . | . . . Combat . | . . . Robot Hacks Applied . | . . . Relay Couplers Released . | . . . Robots Rewired . | . . . Allies Hacked . | . . . Hacks Repelled . | . . . Allies | -11 -10 -9 -------- Run | Scr Mat Mat Total Allies . | . . . Largest Group . | . . . Highest-Rated Group . | . . . Highest-Rated Ally . | . . . Total Orders . | . . . Ally Attacks . | . . . Total Damage . | . . . Kills . | . . . Allies Corrupted . | . . . Allies Melted . | . . . Intel | -11 -10 -9 ------- Run | Scr Mat Mat Robot Analysis Total . | . . . Derelict Logs Recovered . | . . . Drone Launches . | . . . Drone Recoveries . | . . . Exploration | -11 -10 -9 ------------- Run | Scr Mat Mat Turns Passed 388 | 85 303 . Spaces Moved 226 | 53 173 . Core 15 | 15 . . Treads . | . . . Legs 211 | 38 173 . Wheels . | . . . Hover . | . . . Flight . | . . . Fastest Speed 50 | 50 120 . Average Speed 116 | 104 120 . Slowest Speed 150 | 150 120 . Overloaded Moves . | . . . Propulsion Burnouts . | . . . Robots Hopped . | . . . Cave-ins Triggered . | . . . Exploration Rate (%) 11 | 3 29 1 Regions Visited 2 Branch Regions . Pre-discovered Areas . | . . . Known Exits Taken . | . . . Unknown Exits Taken 2 | 1 1 . Scrap Searched . | . . . Spaces Dug . | . . . Terrain Destroyed 2 | 2 . . Melee . | . . . Projectile . | . . . AOE 2 | 2 . . Terrain Rammed . | . . . Walls Destroyed . | . . . Machines Disabled . | . . . Actions | -11 -10 -9 --------- Run | Scr Mat Mat Total 307 | 70 237 . Wait 37 | . 37 . Move 224 | 52 172 . Hop . | . . . Pick Up 3 | 2 1 . Fast Attach 7 | 5 2 . Attach 2 | 1 1 . Detach . | . . . Swap . | . . . Drop 1 | . 1 . Fire 33 | 10 23 . Melee . | . . . Ram . | . . . Kick . | . . . Crush . | . . . Escape Stasis . | . . . Rewire . | . . . Trap . | . . . Miscellaneous . | . . . Route ------- -11/Scrapyard -10/Materials (discovered 2 exits: [*Mat] / [*Min]) -9/Materials History --------- Turn | Location | Event 25 | -11/Scrapyard | Discovered new exit (range 12) 86 | -11/Scrapyard | Entered Materials 249 | -10/Materials | Discovered new exit (range 11) 318 | -10/Materials | Build established: Mutant 364 | -10/Materials | Discovered new exit (range 13) 389 | -10/Materials | Lost 4 parts (1p3w) 389 | -10/Materials | Entered another Materials area 389 | -9/Materials | Evolved 2 slots: Propulsion x2 389 | -9/Materials | Self-destructed Last Messages --------------- 00329_ G-47 Trooper destroyed. 00333_ Mining Laser destroyed. 00341_ Ion Engine melted. 00341_ G-34 Mercenary destroyed. 00343_ K-01 Serf cleans the Neutrino Reactor. 00344_ Dropped Imp. Terrain Scanner. 00344_ Acquired Imp. Heat Sink. 00348_ G-34 Mercenary destroyed. 00350_ K-01 Serf collects debris. 00351_ Acquired 35 matter. 00354_ K-01 Serf cleans the Neutrino Reactor. 00356_ Lgt. Ion Engine destroyed. 00358_ K-01 Serf collects debris. 00358_ Sml. Laser destroyed. 00358_ Acquired 33 matter. 00361_ K-01 Serf collects debris. 00364_ EXIT=FOUND PARAMETERS=PROPULSION_2 LOCATION=UNKNOWN GOAL=ESCAPE Map ----- +----------------------------------------------------+ | | | | | | | | | | | | | ?????????????????????????????????? | | ?????????????????????????????????? | | ?????????????????????????????????? | | ?????????????????????????????????? | | ?????????????????????????????????? | | ?????????????????????????????????? | | ?????????????????????????????????? | | ?????????????????????????????????? | | ?????????????????????????????????? | | ?????????????????????????????????? | | ?????????????????????????????????? | | ?????????????????????????????????? | | ?????????????????????????????????? | | ?????????????????????????????????? | | ?????????????????????????????????? | | ?????????????????????????????????? | | ?????????????????????????????????? | | ???????????????????????#####?????? | | ???????????????????????# #?????? | | ???????????????????????# @ #?????? | | ???????????????????????# #?????? | | ???????????????????????# +?????? | | ???????????????????????# #?????? | | ???????????????????????# #?????? | | ???????????????????????# #?????? | | ??????????????????????? ?????? | | ??????????????????????? ?????? | | ??????????????????????? T ?????? | | ??????????????????????# #????? | | ??????????????????????# #????? | | ??????????????????????## ##????? | | ???????????????????????# #?????? | | ???????????????????????? ??????? | | ???????????????????????? ? ??????? | | ???????????????????????? ? ??????? | | ?????????????????????????????????? | | ?????????????????????????????????? | | ?????????????????????????????????? | | ?????????????????????????????????? | | ?????????????????????????????????? | | ?????????????????????????????????? | | ?????????????????????????????????? | | ?????????????????????????????????? | | ?????????????????????????????????? | +----------------------------------------------------+ Best States ------------- Heat Dissipation 39 Energy Generation 10 Energy Capacity 125 Matter Stores 300 Matter Capacity 300 Sight Range 16 Terrain Scan Range 16 Terrain Scan Density 10 Evasion (%) 50 Item Schematics ----------------- None Robot Schematics ------------------ None Fabricated ------------ Nothing Alien Tech Used ----------------- None Achievements -------------- None Challenges ------------ None Game ------ Seed FlightBlastBiocell Manual? 0 Play Time 00:05:24 Cumulative 13.6 hours Start 2020.10.27 @ 19:45:59 End 2020.10.27 @ 19:51:50 Sessions 1 Manual Loads 0 Difficulty Rogue Special Mode None Game No. 20 Rogue 20 Adventurer 0 Explorer 0 Win Type - Total 0 Types 0/0/0/0/0/0/0/0/0 Lore% 19 Gallery% 19 Achievement% 17 Wizard Run 0 Options --------- ASCII 0 Keyboard 0 Movement Mouse Keybinds 0 Fullscreen 2 Font 24/Smallcaps Map View 76x50 Tactical HUD 1 Map Filters NONE Filters NONE Steam X RUN: acaa37ef-c06b-49e7-8c09-e3983e78aaa7